bitfinex-derivatives/quotes_ETHF0:USTF0_20250104
["timestamp","ask_amount","ask_price","bid_price","bid_amount"]
[1736023345425,0.27367,3654.6,3654.5,0.27367]
[1736023345727,3.21012795,3655.1,3654.4,3.2078]
[1736023345927,0.27367,3654.5,3654.4,3.2078]
[1736023346819,0.27367,3654.6,3654.4,3.48148]
[1736023347024,3.21012795,3655.1,3654.4,3.2078]
[1736023347224,0.27367,3654.6,3654.4,3.48148]
[1736023347423,3.21012795,3655.1,3654.4,3.2078]
[1736023347721,0.27367,3654.5,3654.4,3.2078]
[1736023349119,3.21012795,3655.1,3654.4,3.2078]
[1736023349626,0.68409,3655.0,3654.0,3.2078]
[1736023349926,0.27367,3654.6,3654.4,0.27368]
[1736023350723,3.21012795,3655.1,3654.0,3.2078]
[1736023351027,0.27367,3654.5,3654.3,0.27368]
[1736023351225,0.6841,3655.0,3654.0,3.2078]
[1736023351531,0.27368,3654.5,3654.2,0.27369]
[1736023351724,0.27368,3654.5,3654.1,5.15784395]
[1736023352030,0.27368,3654.5,3654.3,0.27369]
[1736023352819,0.27367,3654.6,3654.3,0.27369]
[1736023353523,5.40720352,3655.1,3654.0,3.2078]
[1736023353718,6.09129352,3655.1,3654.0,3.2078]
[1736023353925,6.09129352,3655.1,3654.3,0.27368]
[1736023353926,0.27367,3654.6,3654.3,0.27368]
[1736023354227,0.27363,3655.0,3654.3,0.27368]
[1736023354433,0.27367,3654.6,3654.3,0.27368]
[1736023354826,5.40720352,3655.1,3654.0,3.2078]
[1736023355148,0.27372,3653.9,3653.7,0.27373]
[1736023355530,0.27371,3654.0,3653.8,0.27372]
[1736023355834,0.27366,3654.7,3654.5,0.27367]
[1736023356129,0.27364,3654.9,3654.3,2.19707557]
[1736023356427,3.21614277,3655.0,3654.9,0.27364]
[1736023356627,3.21614277,3655.0,3654.6,5.40487557]
[1736023356825,0.27364,3654.9,3654.8,0.27365]
[1736023357029,3.21614277,3655.0,3654.9,0.27364]
[1736023357525,0.00232795,3655.1,3655.0,0.27363]
[1736023359522,0.00232795,3655.1,3654.6,5.40487557]
[1736023359831,0.27364,3655.0,3654.9,0.27364]
[1736023360226,0.00232795,3655.1,3654.6,3.2078]
[1736023360427,0.27364,3655.0,3654.9,0.27364]
[1736023361324,0.27363,3655.0,3654.7,0.27365]
[1736023361527,0.27364,3654.9,3654.8,0.27365]
[1736023361730,0.00232795,3655.1,3654.6,3.2078]
[1736023361931,0.27364,3655.0,3654.9,0.27364]
[1736023362130,3.21012795,3655.1,3654.7,0.27365]
[1736023362432,3.21012795,3655.1,3654.3,2.85747557]
[1736023362629,0.00232795,3655.1,3654.7,0.27365]
[1736023362827,0.00232795,3655.1,3654.3,2.85747557]
[1736023362828,0.00232795,3655.1,3654.9,0.27364]
[1736023363933,0.00232795,3655.1,3654.6,2.19707557]
[1736023364230,0.00232795,3655.1,3654.8,0.27365]
[1736023364735,0.27364,3654.9,3654.8,0.27365]
[1736023365933,0.27364,3654.9,3654.6,2.19707557]
[1736023365934,0.00232795,3655.1,3654.6,2.19707557]
[1736023366133,0.27365,3654.9,3654.8,0.27365]
[1736023366328,0.27364,3655.0,3654.8,0.27364]
[1736023366539,0.27364,3655.0,3654.9,0.27364]
[1736023370543,0.27595795,3655.1,3655.0,0.27363]
[1736023371440,0.00232795,3655.1,3655.0,5.67850557]
[1736023371642,3.8674,3656.0,3655.6,0.27359]
[1736023371847,0.6504,3656.2,3655.6,0.27359]
[1736023372145,4.90485087,3656.2,3656.1,0.27355]
[1736023372443,4.25445087,3656.2,3656.1,0.27355]
[1736023372646,4.25445087,3656.2,3656.1,2.47062557]
[1736023373735,0.27351,3656.6,3656.1,7.35616641]
[1736023374039,0.27351,3656.6,3656.4,0.27352]
[1736023374238,0.27351,3656.6,3656.5,0.27352]
[1736023374647,0.27351,3656.6,3656.4,0.27353]
[1736023374939,9.30376646,3656.7,3656.5,0.27352]
[1736023375142,9.03025646,3656.7,3656.6,0.27351]
[1736023377038,9.03025646,3656.7,3656.2,3.2078]
[1736023377248,9.03025646,3656.7,3656.3,0.27354]
[1736023377463,0.27353,3656.4,3656.2,0.27354]
[1736023378237,0.27355,3656.2,3656.0,0.27356]
[1736023378443,0.27356,3656.1,3656.0,0.27356]
[1736023378643,0.27356,3656.1,3655.9,0.27356]
[1736023379649,0.674,3656.3,3655.8,3.2078]
[1736023379956,0.27355,3656.1,3655.9,0.27357]
[1736023380141,0.27355,3656.1,3655.8,3.2078]
[1736023380142,0.674,3656.3,3655.5,2.88797557]
[1736023380342,0.27355,3656.1,3655.9,0.27356]
[1736023380550,0.27355,3656.2,3656.0,0.27355]
[1736023380947,0.674,3656.3,3655.5,2.88797557]
[1736023381150,0.27356,3656.1,3655.9,0.27356]
[1736023381354,0.27355,3656.2,3656.0,0.27356]
[1736023381742,0.27355,3656.2,3655.5,2.88797557]
[1736023382051,0.27355,3656.1,3655.9,0.27356]
[1736023382369,0.674,3656.3,3655.8,2.19707557]
[1736023382657,0.27356,3656.1,3655.9,0.27356]
[1736023382842,0.95635,3656.2,3656.0,0.27355]
[1736023383044,0.6828,3656.2,3656.0,0.27355]
[1736023383248,0.95635,3656.2,3656.0,0.27355]
[1736023384755,0.6828,3656.2,3656.0,0.27355]
[1736023384954,0.27355,3656.1,3655.8,5.40487557]
[1736023385258,0.27355,3656.1,3655.9,0.27356]
[1736023385453,0.27355,3656.1,3655.8,5.40487557]
[1736023385653,0.95635,3656.2,3656.0,0.27355]
[1736023386053,0.674,3656.3,3655.8,5.40487557]
[1736023386261,0.2735,3656.9,3656.6,0.27351]
[1736023386755,0.2735,3656.8,3656.6,0.27351]
[1736023386955,0.6437,3657.1,3656.6,0.27351]
[1736023387153,9.30376646,3656.7,3656.6,0.27351]
[1736023387358,9.03025646,3656.7,3656.3,0.6391]
[1736023387561,0.27353,3656.5,3656.2,3.2078]
[1736023387761,0.27353,3656.5,3656.3,0.27354]
[1736023388760,9.03025646,3656.7,3656.2,3.2078]
[1736023388961,0.27354,3656.3,3656.2,3.2078]
[1736023389258,0.27354,3656.3,3656.1,0.27355]
[1736023389858,3.2078,3656.6,3655.8,2.19707557]
[1736023390052,9.03025646,3656.7,3656.1,5.40487557]
[1736023390258,9.03025646,3656.7,3656.5,0.27352]
[1736023390452,0.27352,3656.6,3656.4,0.27353]
[1736023390658,9.30376646,3656.7,3656.1,5.40487557]
[1736023390858,9.30376646,3656.7,3656.5,0.27352]
[1736023391065,9.30376646,3656.7,3656.6,0.27351]
[1736023391266,9.03025646,3656.7,3656.6,0.27351]
[1736023391473,9.30376646,3656.7,3656.6,0.27351]
[1736023391764,9.03025646,3656.7,3656.6,0.27351]
[1736023401963,4.5368,3657.5,3656.6,0.27351]
[1736023401964,0.27341,3658.0,3657.6,0.27343]
[1736023402160,3.22068921,3658.2,3657.8,2.19707557]
[1736023402161,0.64104,3658.1,3657.8,2.19707557]
[1736023402358,3.2078,3658.3,3657.5,5.40487557]
[1736023402559,5.70963639,3659.8,3659.7,0.27328]
[1736023402793,4.36173639,3659.8,3659.7,5.67815557]
[1736023402997,4.36173639,3659.8,3659.7,3.48108]
[1736023403201,4.36173639,3659.8,3659.7,5.67815557]
[1736023403401,2.01304639,3659.8,3659.7,5.67815557]
[1736023403584,0.2169979,3663.0,3661.1,0.4488204]
[1736023403788,11.90296166,3663.3,3662.9,2.19707557]
[1736023403997,11.90296166,3663.3,3663.2,3.2078]
[1736023404198,3.2078,3664.1,3663.2,3.2078]
[1736023404391,9.38243702,3663.9,3663.3,0.2736]
[1736023404591,0.27296,3664.0,3663.2,3.2078]
[1736023404791,3.2078,3665.0,3663.6,3.2078]
[1736023404984,9.38243702,3664.5,3664.0,3.2078]
[1736023405304,10.27289,3665.1,3664.0,3.48075]
[1736023405498,9.38243702,3664.1,3663.7,6.33531604]
[1736023405702,9.38243702,3663.8,3663.7,6.33531604]
[1736023406204,19.38243702,3663.8,3663.7,6.33531604]
[1736023406389,14.39958351,3663.8,3663.7,7.25933261]
[1736023406590,16.97485396,3663.8,3663.7,7.25933261]
[1736023406988,0.27301,3663.3,3662.7,10.50927204]
[1736023407211,0.27306,3662.7,3661.7,3.48093]
[1736023407903,11.59986792,3662.5,3661.8,14.97026886]
[1736023408107,0.27312,3661.9,3661.8,14.97026886]
[1736023408399,6.98507045,3662.0,3661.3,3.2078]
[1736023408600,6.98507045,3662.0,3660.4,3.2078]
[1736023408601,0.27319,3661.0,3660.4,3.2078]
[1736023408801,0.2732,3660.9,3660.4,3.2078]
[1736023409298,0.27313,3661.7,3660.8,3.2078]
[1736023409637,0.27314,3661.6,3661.2,3.2078]
[1736023409792,8.39206792,3661.7,3661.2,3.2078]
[1736023409988,0.27316,3661.3,3660.7,3.2078]
[1736023410184,8.39206792,3661.7,3661.1,3.2078]
[1736023410401,2.57527045,3661.4,3660.7,3.2078]
[1736023410807,0.2732,3660.8,3660.7,3.2078]
[1736023410994,10.96733837,3661.4,3660.7,3.2078]
[1736023411484,0.2732,3660.8,3660.7,3.2078]
[1736023411984,0.27324,3660.3,3659.8,3.2078]
[1736023412181,0.27323,3660.5,3660.2,3.2078]
[1736023412485,8.66529792,3660.5,3660.2,3.2078]
[1736023412784,0.6422,3661.2,3660.2,3.2078]
[1736023412973,9.30743792,3661.2,3660.5,3.2078]
[1736023413180,9.30743792,3661.2,3660.9,3.2078]
[1736023413497,0.27318,3661.1,3660.9,3.2078]
[1736023413680,9.02946792,3661.2,3660.5,3.2078]
[1736023413681,0.27319,3661.0,3660.5,3.2078]
[1736023413879,0.27318,3661.1,3660.5,3.2078]
[1736023414078,0.27319,3660.9,3660.5,3.2078]
[1736023414380,0.27318,3661.1,3660.5,3.2078]
[1736023414677,9.02946792,3661.2,3660.5,3.2078]
[1736023414874,8.39206792,3661.2,3660.5,3.2078]
[1736023415079,0.27318,3661.1,3660.5,3.2078]
[1736023415476,0.2732,3660.8,3660.5,3.2078]
[1736023416292,2.57527045,3661.4,3660.5,3.2078]
[1736023416474,0.27321,3660.8,3660.5,3.2078]
[1736023416674,2.57527045,3661.0,3660.5,3.2078]
[1736023416879,2.84849045,3660.6,3660.5,3.2078]
[1736023417282,11.24055837,3660.6,3660.5,3.2078]
[1736023417583,11.24055837,3660.6,3660.1,3.2078]
[1736023417584,0.27325,3660.2,3660.1,3.2078]
[1736023417883,10.96733837,3660.6,3660.1,3.2078]
[1736023418080,0.27325,3660.2,3660.1,3.2078]
[1736023418383,2.84852045,3660.2,3660.1,3.2078]
[1736023418582,11.24058837,3660.2,3660.1,3.2078]
[1736023418789,0.27329,3659.6,3659.5,3.2078]
[1736023419174,8.39206792,3659.6,3659.1,3.2078]
[1736023419388,0.27332,3659.2,3659.1,3.2078]
[1736023420076,8.66538792,3659.2,3659.1,3.2078]
[1736023420779,8.39206792,3659.2,3659.1,3.2078]
[1736023420985,4.25708313,3659.2,3659.1,3.2078]
[1736023421705,4.53040313,3659.2,3659.1,3.2078]
[1736023421986,4.25708313,3659.2,3659.1,3.2078]
[1736023422887,4.53040313,3659.2,3659.1,3.2078]
[1736023423787,0.27337,3658.5,3657.9,3.48121]
[1736023424187,0.27337,3658.5,3657.9,3.75481]
[1736023424486,5.78307045,3658.9,3657.9,3.2078]
[1736023424682,0.27337,3658.6,3658.0,0.27341]
[1736023424881,0.27337,3658.6,3657.9,3.2078]
[1736023424882,4.25708313,3658.9,3657.9,3.2078]
[1736023425182,0.27329,3659.6,3658.9,0.27334]
[1736023425587,4.53037313,3659.6,3658.9,0.27334]
[1736023425983,4.53037313,3659.6,3658.9,3.2078]
[1736023425984,0.27333,3659.1,3658.9,3.2078]
[1736023426184,4.25708313,3659.6,3658.5,3.2078]
[1736023426383,0.2733,3659.5,3659.0,0.27333]
[1736023426788,0.27332,3659.2,3658.6,0.27336]
[1736023427081,4.25708313,3659.5,3658.6,0.27336]
[1736023427485,0.27332,3659.2,3658.5,3.2078]
[1736023427791,4.25708313,3659.5,3658.8,0.27335]
[1736023427988,4.25708313,3659.5,3658.9,3.2078]
[1736023428188,4.25708313,3659.5,3659.0,0.27333]
[1736023428492,4.25708313,3659.5,3659.2,0.27331]
[1736023428789,3.77727045,3660.5,3659.3,3.2078]
[1736023428984,3.77727045,3660.5,3659.8,0.27327]
[1736023428985,0.27324,3660.3,3659.8,0.27327]
[1736023429289,4.25708313,3660.4,3659.9,0.27326]
[1736023429290,4.53031313,3660.4,3659.9,0.27326]
[1736023429595,4.53031313,3660.4,3659.7,3.2078]
[1736023429596,0.27325,3660.2,3659.7,3.48108]
[1736023429889,0.27324,3660.3,3659.8,0.27327]
[1736023430279,4.25708313,3660.3,3659.8,0.27328]
[1736023430482,4.25708313,3660.3,3659.7,3.2078]
[1736023430985,4.25708313,3660.3,3660.0,0.27325]
[1736023431185,3.2078,3660.6,3660.1,3.48105]
[1736023431186,0.27322,3660.6,3660.1,3.48105]
[1736023431492,4.53030313,3660.6,3660.1,3.48105]
[1736023432192,4.53030313,3660.6,3660.1,3.2078]
[1736023432193,0.27323,3660.5,3660.1,3.2078]
[1736023432380,4.25708313,3660.6,3660.1,3.2078]
[1736023432583,0.27323,3660.5,3660.1,3.2078]
[1736023432789,4.25708313,3660.6,3660.1,3.2078]
[1736023433085,0.27328,3659.8,3659.3,3.48111]
[1736023433392,8.14794313,3660.6,3659.4,0.2733]
[1736023433587,0.27327,3659.9,3659.4,0.2733]
[1736023433790,8.14794313,3660.6,3659.4,0.2733]
[1736023433989,7.73810313,3660.6,3660.1,0.27325]
[1736023434290,4.25708313,3660.6,3660.2,0.27324]
[1736023434498,0.27324,3660.4,3660.1,3.2078]
[1736023434686,0.27322,3660.5,3660.1,3.48105]
[1736023434884,4.25708313,3660.6,3660.2,0.27324]
[1736023435095,4.53030313,3660.6,3660.2,0.27324]
[1736023435295,4.25708313,3660.6,3660.1,3.2078]
[1736023435591,3.2078,3661.0,3660.2,0.2736]
[1736023435795,0.00280212,3661.5,3660.2,0.2736]
[1736023435796,0.27317,3661.3,3660.7,0.27321]
[1736023436098,0.27317,3661.3,3660.6,3.2078]
[1736023436099,0.27316,3661.3,3661.0,3.2078]
[1736023436287,4.25708313,3661.3,3660.8,0.2732]
[1736023436595,0.27317,3661.2,3660.8,0.2732]
[1736023437292,0.00280212,3661.5,3661.0,0.499]
[1736023437596,3.2078,3663.6,3661.4,0.68289]
[1736023437898,6.88178313,3663.6,3662.7,3.2078]
[1736023438396,3.94697313,3663.6,3663.0,0.27303]
[1736023438599,0.27294,3664.3,3663.2,5.78307045]
[1736023438787,3.2078,3664.2,3663.4,2.57527045]
[1736023438988,3.2078,3664.2,3663.2,0.8582]
[1736023439283,6.88178313,3664.2,3663.0,5.78307045]
[1736023439486,0.27299,3663.6,3663.0,6.05611045]
[1736023439691,0.27299,3663.6,3663.1,0.27303]
[1736023439885,0.273,3663.5,3663.0,5.78307045]
[1736023440083,3.67398313,3663.6,3662.6,5.78307045]
[1736023440391,0.27302,3663.3,3662.7,0.27305]
[1736023440789,0.27302,3663.2,3662.7,0.27305]
[1736023441091,3.94700313,3663.3,3662.6,5.78307045]
[1736023441394,0.27303,3663.2,3662.6,5.78307045]
[1736023441887,0.27303,3663.1,3662.6,5.78307045]
[1736023442087,3.94700313,3663.2,3662.6,6.05613045]
[1736023442396,0.27303,3663.1,3662.6,6.05613045]
[1736023442591,3.94700313,3663.2,3662.6,6.05613045]
[1736023442791,0.27303,3663.1,3662.6,6.05613045]
[1736023443396,3.94701313,3663.1,3662.6,5.78307045]
[1736023443595,3.94701313,3663.1,3662.6,6.05613045]
[1736023443990,3.67398313,3663.1,3662.6,5.78307045]
[1736023444389,0.27305,3662.8,3662.6,5.78307045]
[1736023444693,0.27305,3662.9,3662.6,5.78307045]
[1736023444894,3.67398313,3663.1,3662.6,5.78307045]
[1736023445493,0.27305,3662.9,3662.6,5.78307045]
[1736023445692,0.27304,3663.0,3662.6,6.05613045]
[1736023446095,0.27305,3662.9,3662.6,5.78307045]
[1736023446598,3.94703313,3662.9,3662.6,5.78307045]
[1736023447095,3.2078,3663.4,3662.6,5.78307045]
[1736023447291,0.27305,3662.9,3662.6,5.78307045]
[1736023448393,3.2078,3663.4,3662.6,5.78307045]
[1736023448790,3.2078,3663.4,3662.2,2.57527045]
[1736023449103,0.27306,3662.7,3662.4,0.27308]
[1736023449292,0.27308,3662.5,3662.2,5.78307045]
[1736023449488,0.27309,3662.3,3662.2,3.2078]
[1736023449698,3.2078,3663.0,3661.9,0.8582]
[1736023449896,0.2731,3662.2,3661.9,1.13131]
[1736023450093,3.2078,3663.0,3661.9,0.8582]
[1736023450293,0.27309,3662.4,3661.9,0.8582]
[1736023450496,3.2078,3663.0,3661.9,0.8582]
[1736023450696,3.2078,3663.0,3661.9,1.13131]
[1736023450697,0.27304,3662.9,3661.9,1.13131]
[1736023450897,3.2078,3663.0,3662.1,0.2731]
[1736023451094,0.27309,3662.3,3661.9,1.13131]
[1736023451398,0.2731,3662.2,3661.9,0.8582]
[1736023451701,0.2731,3662.2,3661.8,6.05619045]
[1736023452094,0.27309,3662.3,3661.8,6.05619045]
[1736023452394,0.2731,3662.2,3661.8,5.78307045]
[1736023453196,3.2078,3662.6,3661.8,5.78307045]
[1736023453597,0.2731,3662.2,3661.8,6.05619045]
[1736023453804,3.2078,3662.2,3661.6,4.17706051]
[1736023454298,1.672,3662.5,3661.8,3.2078]
[1736023454490,1.672,3662.5,3661.5,4.17706051]
[1736023454689,0.27312,3661.9,3661.5,4.45021051]
[1736023455096,3.2078,3662.4,3661.5,4.17706051]
[1736023455501,0.27314,3661.7,3661.5,4.17706051]
[1736023455898,0.27309,3662.3,3661.5,4.17706051]
[1736023456102,0.27309,3662.3,3661.4,5.78307045]
[1736023456103,0.27312,3662.0,3661.6,0.27314]
[1736023456595,3.2078,3662.4,3661.4,5.78307045]
[1736023456790,0.27312,3661.9,3661.5,0.27315]
[1736023456994,0.27314,3661.7,3661.4,5.78307045]
[1736023457195,0.27314,3661.7,3661.4,3.2078]
[1736023457904,0.27314,3661.7,3661.4,3.48095]
[1736023458098,0.27313,3661.7,3661.4,3.48095]
[1736023458405,3.2078,3662.4,3661.4,3.2078]
[1736023458702,3.2078,3662.4,3661.0,10.23331096]
[1736023458703,0.27316,3661.4,3661.0,10.23331096]
[1736023459402,3.2078,3661.9,3661.0,9.96013096]
[1736023459803,3.2078,3661.9,3661.4,2.57527045]
[1736023460101,3.2078,3662.4,3661.8,3.2078]
[1736023460300,3.2078,3662.4,3661.4,5.78307045]
[1736023460500,0.27312,3662.0,3661.7,0.27313]
[1736023460806,3.2078,3662.4,3661.4,5.78307045]
[1736023461007,3.2078,3662.4,3661.6,0.27314]
[1736023461303,0.27312,3661.9,3661.5,0.27314]
[1736023461495,0.27312,3661.9,3661.5,0.27315]
[1736023461695,3.2078,3662.4,3661.4,5.78307045]
[1736023461899,0.27311,3662.0,3661.4,5.78307045]
[1736023462103,0.27311,3662.0,3661.6,0.27314]
[1736023462900,3.2078,3662.4,3661.5,0.27315]
[1736023462901,0.27312,3661.9,3661.5,0.27315]
[1736023463501,0.27313,3661.8,3661.5,0.27315]
[1736023463904,0.27312,3662.0,3661.5,0.27315]
[1736023464108,0.27312,3661.9,3661.5,0.27314]
[1736023464306,0.27312,3661.9,3661.7,0.27313]
[1736023464518,3.2078,3662.4,3661.0,5.78307045]
[1736023464808,1.672,3662.5,3661.0,3.2078]
[1736023464809,0.27318,3661.2,3661.0,3.2078]
[1736023465408,0.27317,3661.3,3661.0,3.48098]
[1736023465709,0.27318,3661.1,3661.0,3.2078]
[1736023466307,3.2078,3661.9,3661.0,5.78307045]
[1736023466606,0.27313,3661.8,3661.5,0.27314]
[1736023466810,0.27313,3661.8,3661.0,5.78307045]
[1736023466811,3.2078,3661.9,3661.0,5.78307045]
[1736023467108,0.27313,3661.8,3661.5,0.27315]
[1736023467905,0.27313,3661.7,3661.5,3.48095]
[1736023468208,0.27313,3661.7,3661.5,3.2078]
[1736023468209,0.27314,3661.7,3661.5,3.2078]
[1736023468701,3.2078,3662.3,3661.5,3.2078]
[1736023469507,0.27312,3662.0,3661.7,0.27313]
[1736023469700,0.27312,3661.9,3661.5,3.2078]
[1736023469909,3.2078,3662.3,3661.5,3.48094]
[1736023469910,0.27313,3661.7,3661.5,3.48094]
[1736023470201,0.27313,3661.8,3661.6,0.27314]
[1736023470407,3.2078,3662.3,3661.5,3.2078]
[1736023470604,0.27313,3661.8,3661.5,3.2078]
[1736023471007,0.27313,3661.8,3661.5,3.48094]
[1736023471205,0.2731,3662.2,3661.9,0.27311]
[1736023471510,0.27311,3662.1,3661.8,0.27312]
[1736023471808,0.27311,3662.0,3661.8,0.27312]
[1736023472715,0.2731,3662.1,3661.6,0.27314]
[1736023473011,0.27313,3661.8,3661.7,0.27313]
[1736023473706,3.2078,3662.2,3661.5,3.2078]
[1736023473913,0.27314,3661.6,3661.5,3.48095]
[1736023474307,0.27314,3661.7,3661.5,3.48095]
[1736023474506,3.2078,3661.8,3661.1,7.38486051]
[1736023474703,0.27317,3661.2,3661.1,4.17706051]
[1736023475107,0.27317,3661.2,3661.1,4.45024051]
[1736023475306,0.27317,3661.2,3661.1,4.17706051]
[1736023476113,0.27317,3661.2,3660.9,5.28885051]
[1736023477114,0.27317,3661.2,3661.0,0.27318]
[1736023477511,0.8305,3661.6,3660.9,1.11179]
[1736023478120,0.27318,3661.1,3660.9,1.11179]
[1736023478320,0.27318,3661.1,3660.9,0.8386]
[1736023478514,0.27318,3661.1,3660.9,5.28885051]
[1736023478717,0.27317,3661.3,3661.0,0.27318]
[1736023479021,0.27317,3661.2,3661.0,0.27318]
[1736023479414,0.27317,3661.2,3660.9,5.28885051]
[1736023479723,0.27319,3661.0,3660.9,4.17706051]
[1736023480033,3.2078,3661.4,3660.8,6.27897537]
[1736023480215,0.27319,3661.0,3660.8,6.27897537]
[1736023480519,3.2078,3661.4,3660.8,6.27897537]
[1736023480718,0.27319,3661.0,3660.8,6.27897537]
[1736023480918,0.27319,3660.9,3660.8,6.27897537]
[1736023481114,0.27319,3660.9,3660.7,6.27897537]
[1736023481324,0.27319,3660.9,3660.7,6.55218537]
[1736023481620,0.27319,3661.0,3660.8,0.2732]
[1736023481814,3.2078,3661.4,3660.7,6.55217537]
[1736023482013,3.2078,3661.4,3660.7,6.27897537]
[1736023482219,0.2732,3660.8,3660.7,6.27897537]
[1736023482521,0.2732,3660.8,3660.7,4.21263538]
[1736023483019,6.63298944,3661.0,3660.5,4.46081075]
[1736023483219,3.48096,3661.4,3660.6,2.18218944]
[1736023483414,0.27315,3661.5,3661.0,3.2078]
[1736023483616,0.27315,3661.5,3661.2,0.27317]
[1736023483922,3.2078,3662.4,3661.4,3.2078]
[1736023484114,0.27312,3661.9,3661.5,0.9166]
[1736023484318,0.27314,3661.6,3661.5,0.9166]
[1736023484516,0.27314,3661.7,3661.5,1.18975]
[1736023484914,0.27313,3661.8,3661.6,0.27314]
[1736023485723,0.27312,3661.9,3661.6,0.27314]
[1736023485924,0.27313,3661.8,3661.5,1.18974]
[1736023486424,0.27314,3661.6,3661.5,0.9166]
[1736023486618,0.27314,3661.7,3661.5,0.9166]
[1736023487017,2.18218944,3662.2,3661.5,0.9166]
[1736023487220,0.27314,3661.6,3661.5,0.9166]
[1736023488725,3.2078,3662.0,3661.5,0.9166]
[1736023488926,0.27313,3661.8,3661.5,1.18975]
[1736023489123,0.27314,3661.7,3661.5,0.9166]
[1736023489322,0.27314,3661.7,3661.5,1.18975]
[1736023489520,0.27314,3661.7,3661.5,0.9166]
[1736023490227,0.27314,3661.6,3661.5,0.9166]
[1736023491533,0.27313,3661.8,3661.5,0.9166]
[1736023491825,0.27313,3661.8,3661.5,1.18974]
[1736023492030,0.27313,3661.7,3661.5,0.9166]
[1736023493128,0.27314,3661.6,3661.5,0.9166]
[1736023493831,0.27313,3661.7,3661.5,1.18975]
[1736023494737,0.27313,3661.8,3661.5,1.18975]
[1736023495230,0.27314,3661.7,3661.5,1.18975]
[1736023496032,0.27314,3661.6,3661.2,0.27317]
[1736023496329,4.79762,3662.4,3661.2,2.18218944]
[1736023496526,4.1149,3662.4,3661.3,3.2078]
[1736023496729,0.27314,3661.7,3661.4,0.27315]
[1736023497035,0.27314,3661.6,3661.4,0.27315]
[1736023497225,0.27314,3661.7,3661.4,0.27315]
[1736023497433,0.27314,3661.6,3661.4,5.17255428]
[1736023498132,2.18218944,3662.2,3661.4,5.17255428]
[1736023498329,3.2078,3662.0,3661.4,5.17255428]
[1736023498637,0.27311,3662.1,3661.8,0.27312]
[1736023498827,0.27311,3662.1,3661.2,10.5029659]
[1736023498828,0.2731,3662.1,3661.9,0.27311]
[1736023499029,0.2731,3662.1,3661.6,3.2078]
[1736023499228,0.9071,3662.4,3661.6,3.2078]
[1736023499428,0.9071,3662.4,3661.8,0.27312]
[1736023499429,0.27311,3662.0,3661.8,0.27312]
[1736023499625,4.11107987,3662.5,3661.9,0.8889]
[1736023500024,0.27309,3662.4,3662.3,0.27309]
[1736023500330,0.27309,3662.3,3662.2,0.27309]
[1736023500532,0.27309,3662.3,3662.0,0.27311]
[1736023500834,0.27309,3662.3,3662.2,0.2731]
[1736023501533,0.27309,3662.3,3661.9,0.8889]
[1736023501534,0.27307,3662.5,3662.4,0.27308]
[1736023501923,3.21047987,3662.7,3662.5,0.27307]
[1736023502132,3.21047987,3662.7,3662.6,0.27307]
[1736023503136,3.21786247,3663.4,3662.5,4.77038]
[1736023503429,3.21786247,3663.4,3663.3,0.27301]
[1736023503856,3.21786247,3663.4,3663.3,1.14951]
[1736023504338,0.27303,3663.1,3662.9,0.27304]
[1736023504536,0.27302,3663.2,3662.9,0.27304]
[1736023504740,0.27302,3663.2,3662.6,2.18218944]
[1736023504930,0.27302,3663.2,3662.9,0.27304]
[1736023505133,0.27302,3663.2,3663.1,8.32077646]
[1736023506333,3.2078,3663.6,3662.8,3.2078]
[1736023506637,0.27303,3663.1,3662.9,0.27304]
[1736023507138,3.2078,3663.6,3662.8,3.2078]
[1736023507431,3.2078,3663.6,3663.0,0.27304]
[1736023507432,0.27302,3663.2,3663.0,0.27304]
[1736023507638,0.27302,3663.2,3662.8,3.2078]
[1736023507639,3.2078,3663.6,3662.8,3.2078]
[1736023507938,0.27304,3663.0,3662.8,3.48085]
[1736023508135,3.2078,3663.6,3662.8,3.2078]
[1736023508436,0.27305,3662.8,3662.7,0.8487]
[1736023509230,0.27305,3662.9,3662.7,0.8487]
[1736023510132,3.2078,3663.6,3662.7,4.0565]
[1736023510430,0.27302,3663.2,3662.9,0.27304]
[1736023510831,0.27301,3663.4,3662.9,2.18218944]
[1736023511041,1.51613,3664.0,3663.2,2.18218944]
[1736023511042,3.2078,3664.0,3663.2,2.18218944]
[1736023511334,0.27297,3663.9,3663.6,0.27299]
[1736023511837,0.859,3664.1,3663.6,0.27299]
[1736023512037,0.27298,3663.8,3663.6,0.27299]
[1736023513633,0.27298,3663.7,3663.6,0.27299]
[1736023513833,0.859,3664.1,3663.5,3.2078]
[1736023514028,0.27299,3663.6,3663.5,3.2078]
[1736023514638,0.27302,3663.3,3663.1,0.27302]
[1736023514842,3.2078,3663.8,3662.9,5.38998944]
[1736023515035,0.27302,3663.3,3663.1,0.27302]
[1736023516140,0.27302,3663.3,3662.9,5.38998944]
[1736023516337,0.27302,3663.3,3663.1,0.27303]
[1736023516936,0.27301,3663.4,3663.2,0.27302]
[1736023517742,0.27298,3663.7,3663.2,0.27302]
[1736023518042,0.27301,3663.4,3663.1,0.27302]
[1736023518236,3.2078,3664.2,3662.9,5.38998944]
[1736023518437,0.27301,3663.5,3663.3,3.2078]
[1736023518647,0.27301,3663.4,3663.3,3.2078]
[1736023519243,0.27301,3663.4,3663.1,0.27302]
[1736023519751,0.27301,3663.4,3663.2,0.27302]
[1736023521341,2.18218944,3663.8,3662.9,3.2078]
[1736023521642,0.27304,3663.0,3662.8,0.27305]
[1736023521838,0.27304,3663.0,3662.9,3.2078]
[1736023522046,0.27302,3663.3,3663.0,0.27303]
[1736023522339,0.27302,3663.2,3663.0,0.27304]
[1736023522641,0.27303,3663.2,3663.0,0.27304]
[1736023523140,3.2078,3663.3,3662.7,1.721]
[1736023523343,0.27305,3662.8,3662.7,1.721]
[1736023524040,2.18218944,3663.2,3662.1,4.0826]
[1736023524241,0.2731,3662.2,3662.1,4.0826]